Cogmind - Beta 17.1 @@@ ROGUE MODE // 2026.09.06 @ 12:06:22 Player: McSaucyNugget Result: Destroyed by as-29011 with Assembled Blade Performance ------------- Evolutions (0) 0 Regions Visited (2) 400 Robots Destroyed (0) 0 Value Destroyed (0) 0 Prototype IDs (0) 0 Alien Tech Used (0) 0 Bonus (0) 0 TOTAL SCORE: 400 Bonus ------- None Cogmind --------- Core Integrity 0/250 Matter 300/300 Energy 99/100 System Corruption 1% Temperature Cool (0) Movement Core (50) Location -10/Mines Parts ------- > --- POWER (1) -------- (None) > --- PROPULSION (2) --- Light Treads > --- UTILITY (2) ------ (None) > --- WEAPON (2) ------- (None) > --- INVENTORY (5) ---- Light Armor Plating Medium Armor Plating Medium Armor Plating Medium Armor Plating Medium Armor Plating Peak State ------------ > --- POWER ------------ (None) > --- PROPULSION ------- Light Treads Light Treads > --- UTILITY ---------- (None) > --- WEAPON ----------- Mining Claw > --- INVENTORY -------- Light Armor Plating Medium Armor Plating Medium Armor Plating Medium Armor Plating Medium Armor Plating [Rating: 3] Favorites ----------- Power None Propulsion Light Treads Treads Light Treads Utility None Weapon Mining Claw Slashing Weapon Mining Claw Build | -11 -10 -10 ------- Run | Yrd Mat Min Slots Evolved . | . . . Power . | . . . Propulsion . | . . . Utility . | . . . Weapon . | . . . Parts Attached 3 | 2 1 . Power . | . . . Engine . | . . . Core . | . . . Reactor . | . . . Propulsion 2 | 2 . . Treads 2 | 2 . . Leg . | . . . Wheel . | . . . Hover . | . . . Flight . | . . . Utility . | . . . Device . | . . . Storage . | . . . Processor . | . . . Hackware . | . . . Protection . | . . . Artifact . | . . . Weapon 1 | . 1 . Energy Gun . | . . . Energy Cannon . | . . . Ballistic Gun . | . . . Ballistic Cannon . | . . . Launcher . | . . . Special Weapon . | . . . Impact Weapon . | . . . Slashing Weapon 1 | . 1 . Piercing Weapon . | . . . Special Melee Weapon . | . . . Unidentified Prototypes . | . . . Parts Lost 2 | . . 2 Power . | . . . Propulsion 1 | . . 1 Utility . | . . . Weapon 1 | . . 1 Highest Loss Streak 2 | . . 2 To Critical Strikes . | . . . Average Backups 4 | . 4 5 Power . | . . . Propulsion . | . . . Utility 4 | . 4 5 Weapon . | . . . Tool/Special . | . . . Unused Backups 5 | . . 5 Power . | . . . Propulsion . | . . . Utility 5 | . . 5 Weapon . | . . . Tool/Special . | . . . Average Slot Usage (%) 35 | . 34 35 Treads 26 | . 28 24 Slashing Weapon 8 | . 6 10 Peak Build Rating 3 | 2 3 3 Average Rating 2 | 1 2 2 On Entrance 1 | . 2 3 Avg Prop Armor Cover (%) 38 | 41 39 37 Naked Turns . | . . . Heaviest Build 2 | . 2 2 Greatest Support 20 | 20 3 3 Greatest Overweight (x) . | . . . Average Overweight (x) . | . . . Largest Inventory Capacity 5 | 5 5 5 Average Capacity 5 | 5 5 5 Most Carried 5 | . 5 5 Average Carried 4 | . 4 5 Final Capacity 5 | 5 5 5 Final Carried 5 | . 5 5 Class Distribution -------------------- 100% | Mutant Dominant Class ---------------- Mutant | -10/Materials Mutant | -10/Mines Resources | -11 -10 -10 ----------- Run | Yrd Mat Min Matter Collected 230 | 220 10 . Remotely . | . . . Salvage Created . | . . . Parts . | . . . Haulers Intercepted . | . . . Recyclers Shooed . | . . . Parts Field Recycled . | . . . Retrieved Matter . | . . . Parts Self-Destructed . | . . . Prevented . | . . . Parts Restored . | . . . Kills | -11 -10 -10 ------- Run | Yrd Mat Min Combat Hostiles Destroyed . | . . . Classes Destroyed . | . . . Best Kill Streak . | . . . Combat Bots Only . | . . . Max Kills in Single Turn . | . . . Gunslinging . | . . . Exploded . | . . . Melee . | . . . Uniques/NPCs Destroyed . | . . . Combat | -11 -10 -10 -------- Run | Yrd Mat Min Hostile Shots Fired 61 | . 1 60 Missed 28 | . . 28 Hits 33 | . 1 32 Melee 3 | . . 3 Projectile 30 | . 1 29 Critical Strikes 1 | . . 1 Damage Taken 576 | . 90 486 Core 254 | . 23 231 Absorbed by Shields . | . . . Core Remaining (%) 100 | 100 . . Volleys Fired . | . . . Largest . | . . . Hottest . | . . . Shots Fired . | . . . Gun . | . . . Cannon . | . . . Launcher . | . . . Special . | . . . Kinetic . | . . . Thermal . | . . . Explosive . | . . . Electromagnetic . | . . . Robot Hit Streak . | . . . Robot Miss Streak . | . . . Penetration Max . | . . . Secondary Targets . | . . . Shots Hit Robots . | . . . Core Hits . | . . . Critical Kills . | . . . Critical Parts Destroyed . | . . . Critical Strikes . | . . . Melee Attacks . | . . . Impact . | . . . Slashing . | . . . Piercing . | . . . Sneak Attacks . | . . . Combat Hostiles . | . . . Follow-up Attacks . | . . . Damage Inflicted . | . . . Guns . | . . . Cannons . | . . . Explosions . | . . . Melee . | . . . Ramming . | . . . Kinetic . | . . . Thermal . | . . . Explosive . | . . . Electromagnetic . | . . . Impact . | . . . Slashing . | . . . Piercing . | . . . Highest Corruption 1 | . 1 1 Average Corruption 1 | . 1 1 Corruption Purged . | . . . Corruption Blocked . | . . . Overload Shots . | . . . Overflow Damage . | . . . Projectiles . | . . . Explosions . | . . . Melee . | . . . Knockbacks . | . . . Impact . | . . . Kinetic . | . . . Secondary . | . . . Self-Inflicted Damage . | . . . Shots . | . . . Rammed . | . . . Targets Rammed . | . . . Kicked . | . . . Crushed . | . . . Highest Temperature 15 | . . 15 Average Temperature 8 | . . 8 Received Heat Transfer 133 | . 6 127 Siege Activations . | . . . Martial Activations . | . . . Shielding Activations . | . . . Robots Disrupted . | . . . Combat Hostiles . | . . . Robots Corrupted . | . . . Combat Hostiles . | . . . Parts Fried . | . . . Impact Corruptions . | . . . Robots Melted . | . . . Combat Hostiles . | . . . Parts Melted . | . . . Heat Transferred . | . . . Parts Sabotaged . | . . . Parts Stolen . | . . . Parts Stripped . | . . . Power Chain Reactions . | . . . Alert | -11 -10 -10 ------- Run | Yrd Mat Min Maximum Alert Level . | . . . Low Security (%) 100 | 100 100 100 Level 1 . | . . . Level 2 . | . . . Level 3 . | . . . Level 4 . | . . . Level 5 . | . . . High Security . | . . . Max Security . | . . . Peak Influence 30 | . 30 11 Initial 11 | . . 11 Average 1 | . . 1 Influence Increases 30 | . 30 . Lose Combat Pursuer 30 | . 30 . Influence Decreases 30 | . . 30 Entered New Map 19 | . . 19 Time Decay 11 | . . 11 Squads Dispatched 2 | . 2 . Investigation . | . . . Extermination . | . . . Reinforcement 2 | . 2 . Assault . | . . . Garrison . | . . . Intercept . | . . . Searches Triggered . | . . . Construction Impeded . | . . . Haulers Reinforced . | . . . Active Scanning Responses . | . . . Cargo Convoy Interrupts . | . . . Stealth | -11 -10 -10 --------- Run | Yrd Mat Min Distress Signals . | . . . Communications Jammed . | . . . Distress Signals . | . . . Times Spotted 34 | . 8 26 Peak Tracking Total 22 | . 6 22 Tactical Retreats 3 | . 1 2 Traps | -11 -10 -10 ------- Run | Yrd Mat Min Traps Triggered 2 | . 2 . Indirectly . | . . . Trap Hack Attempts . | . . . Triggered . | . . . Disarmed . | . . . Reprogrammed . | . . . Reused . | . . . Traps Extracted . | . . . Installed . | . . . Triggered . | . . . Machines | -11 -10 -10 ---------- Run | Yrd Mat Min Machines Disabled . | . . . Max in Single Turn . | . . . Machines Repaired . | . . . Machines Dismantled . | . . . Machines Sabotaged . | . . . Overloaded Fab Kills . | . . . Hacking | -11 -10 -10 --------- Run | Yrd Mat Min Machines Accessed 1 | . 1 . Terminals 1 | . 1 . Fabricators . | . . . Repair Stations . | . . . Recycling Units . | . . . Scanalyzers . | . . . Garrison Access . | . . . Total Hacks 1 | . 1 . Successful . | . . . Failed 1 | . 1 . Catastrophic 1 | . 1 . Database Lockouts . | . . . Manual 1 | . 1 . Terminals 1 | . 1 . Fabricators . | . . . Repair Stations . | . . . Recycling Units . | . . . Scanalyzers . | . . . Garrison Access . | . . . Terminal Hacks . | . . . Fabricator Hacks . | . . . Repair Station Hacks . | . . . Recycling Unit Hacks . | . . . Scanalyzer . | . . . Garrison Access Hacks . | . . . Unauthorized Hacks . | . . . Terminals . | . . . Fabricators . | . . . Repair Stations . | . . . Recycling Units . | . . . Scanalyzers . | . . . Garrison Access . | . . . Data Cores Recovered . | . . . Used . | . . . Hacking Detections 1 | . 1 . Full Trace Events . | . . . Feedback Events . | . . . Feedback Blocked . | . . . Robot Schematics Acquired . | . . . Robots Built . | . . . Authchips . | . . . Time . | . . . Total Robot Build Rating . | . . . Part Schematics Acquired . | . . . Parts Built . | . . . Authchips . | . . . Time . | . . . Total Part Build Rating . | . . . Part Studies Acquired . | . . . Parts Repaired . | . . . Time . | . . . Parts Recycled . | . . . Recycled Matter . | . . . Retrieved Matter . | . . . Retrieved Components . | . . . Parts Scanalyzed . | . . . Part Schematics Acquired . | . . . Parts Damaged . | . . . Bothacking | -11 -10 -10 ------------ Run | Yrd Mat Min Used RIF Installer . | . . . Robots Hacked . | . . . Non-combat . | . . . Combat . | . . . Robot Hacks Applied . | . . . Relay Couplers Released . | . . . Fabnet Peak Effective % . | . . . Robots Rewired . | . . . Allies Hacked . | . . . Hacks Repelled . | . . . Allies | -11 -10 -10 -------- Run | Yrd Mat Min Total Allies . | . . . Largest Group . | . . . Highest-Rated Group . | . . . Highest-Rated Ally . | . . . Total Orders . | . . . Ally Attacks . | . . . Total Damage . | . . . Kills . | . . . Allies Corrupted . | . . . Allies Melted . | . . . Intel | -11 -10 -10 ------- Run | Yrd Mat Min Active Infowar (turns) . | . . . Robot Analysis Total . | . . . Derelict Logs Recovered . | . . . Drone Launches . | . . . Drone Recoveries . | . . . Exploration | -11 -10 -10 ------------- Run | Yrd Mat Min Turns Passed 247 | 20 107 120 Spaces Moved 460 | 32 189 239 Core 459 | 31 189 239 Treads 1 | 1 . . Legs . | . . . Wheels . | . . . Hover . | . . . Flight . | . . . Fastest Speed 50 | 50 50 50 Average Speed 50 | 53 50 50 Slowest Speed 160 | 160 50 50 Overloaded Moves . | . . . Propulsion Burnouts . | . . . Robots Hopped . | . . . Potential Cave-ins . | . . . Cave-ins Triggered . | . . . Exploration Rate (%) 41 | 4 42 79 Regions Visited 2 Branch Regions 1 Pre-discovered Areas . | . . . Known Exits Taken . | . . . Unknown Exits Taken 2 | 1 1 . Scrap Searched 1 | . . 1 Spaces Dug . | . . . Terrain Destroyed . | . . . Melee . | . . . Projectile . | . . . AOE . | . . . Terrain Rammed . | . . . Walls Destroyed . | . . . Machines Disabled . | . . . Actions | -11 -10 -10 --------- Run | Yrd Mat Min Total 472 | 33 200 239 Wait 6 | . 6 . Move 458 | 31 188 239 Hop . | . . . Pick Up 5 | . 5 . Fast Attach 3 | 2 1 . Attach . | . . . Detach . | . . . Swap . | . . . Drop . | . . . Fire . | . . . Melee . | . . . Ram . | . . . Kick . | . . . Crush . | . . . Escape Stasis . | . . . Rewire . | . . . Trap . | . . . Miscellaneous . | . . . Route ------- -11/Scrapyard -10/Materials -10/Mines History --------- Turn | Location | Event 6 | -11/Scrapyard | Discovered new exit (range 15) 21 | -11/Scrapyard | Entered Materials 110 | -10/Materials | Discovered new exit (range 7) 128 | -10/Materials | Entered Mines 182 | -10/Mines | Assembled infested the area 213 | -10/Mines | Core integrity fell below 50% 242 | -10/Mines | A weapon hastily lodged in a ceiling crevice suddenly fell to the ground 247 | -10/Mines | Core integrity fell below 20% 248 | -10/Mines | Destroyed by as-29011 with Assembled Blade Last Messages --------------- 00123_ ALERT: Hostiles spotted, dispatching reinforcements to Terminal M003. LOCATION=UNKNOWN GOAL=ESCAPE 00137_ T-07 Excavator is excavating. 00178_ Critical hit (Burn: +37). 00182_ ALERT: Infestation in the mines, dispatching Demolisher response squad. 00186_ Searching scrap... 00186_ Found Med. Laser. 00186_ Found Mining Laser. 00186_ Found 61 Matter. 00209_ Knocked back. 00210_ Lgt. Treads destroyed. 00211_ Mining Claw destroyed. 00224_ K-01 Serf collects debris. 00237_ R-06 Scavenger destroyed. 00242_ A Bore Cannon has been hastily shoved under some rubble with a note attached: "Boring, it is not. Although I admit enemies do get bored, for sure." Map ----- +----------------------------------------------------+ | ??# #????????????????? | | ??# " ##????????????????? | | ??# ###?????????????????? | | ??# ######???????????????????? | | ??## ##????????????????????????? | | ???### #????####?????????????????? | | ?????## #???## ##????????????????? | | ??????# #???# #????????????????? | | ??????# ##??# #????????????????? | | ??????# #### ######???????????? | | ??????# ## #???????????? | | ??????## ########????? | | ???????## ###$ #????? | | ????????## ##?# #????? | | ?????????## #??#### #### #????? | | ??????????# #####??# #??? #????? | | ??????????# ### #?# #?## ##???? | | ??????????## | ## ## ## ##??? | | ???????????# *=##* #??? | | ???????????# !%= #??? | | ???????????### = ##??? | | ?????????????##### ####???? | | ?????????????????# ##??????? | | ?????????????????# ##??????? | | ????????????????## ##?????? | | ????????????????# a @ ##????? | | ????????????????# aa #????? | | ??????????? ### #????? | | ??????????? #??## ##????? | | ???????????###### ???## #?????? | | ????????????????## #???# ##????? | | ?????????????????###????# ####?? | | ????????????????????????#### ##? | | ???????????????????????????## #? | | ????????????????????????????# ##? | | ????????????????????????????# ##?? | | ???????????????????????????## #??? | | ???????????????????????????# #??? | | ??????????????????????????# ] #??? | | ?????????????????????????# ##??? | | ????????????????????????# ##???? | | ????????????????????????# #????? | | ????????????????????????## ##????? | | ?????????????????????????####??????? | | ???????????????????????????????????? | | ???????????????????????????????????? | | | | | | | | | +----------------------------------------------------+ Best States ------------- Heat Dissipation 25 Energy Generation 5 Energy Capacity 100 Matter Stores 300 Matter Capacity 300 Sight Range 16 Terrain Scan Density 10 Evasion (%) 50 Item Schematics ----------------- None Robot Schematics ------------------ None Fabricated ------------ Nothing Repaired ---------- Nothing Studied --------- None Alien Tech Used ----------------- None Achievements -------------- None Challenges ------------ None Game ------ Seed SalvagingLegLauncher Manual? 0 Play Time 00:05:00 Cumulative 362.7 hours Start 2026.09.06 @ 12:02:53 End 2026.09.06 @ 12:06:22 Sessions 1 Manual Loads 0 Difficulty Rogue Special Mode None Game No. 147 Rogue 147 Adventurer 0 Explorer 0 Win Type - Total 37 Types 12/5/7/2/1/1/3/2/2/2 Lore% 85 Gallery% 80 Achievement% 76 Wizard Run 0 Options --------- Layout 0 ASCII 0 Keyboard 1 Movement Vi Keybinds 0 Fullscreen 2 Font 24/Smallcaps Map View 76x50 Zoom Use 0% Tactical HUD 1 Map Filters NONE Filters NONE Steam 1 RUN: be97f6ed-0ce2-4ea9-b4bb-fbfd23a2364b